fUST/lending_fUST_20240820
["ID","MTS","AMOUNT","RATE_DAILY","PERIOD"]
[335307353,1724097038600,-850.86713135,0.00012551,2]
[335307354,1724097038611,-55471.09586993,0.00012782,2]
[335307355,1724097038622,-55471.09586993,0.00012782,2]
[335307356,1724097038633,-157.09608348,0.00012898,2]
[335307357,1724097038647,-42411.5996467,0.00012898,2]
[335307358,1724097038657,-7013.41255393,0.00012999,2]
[335307359,1724097038666,-8844.39705201,0.00012999,2]
[335307360,1724097038677,-420.0,0.00013187,2]
[335307361,1724097038688,-200.0,0.00013333,2]
[335307362,1724097038699,-200.0,0.00013417,2]
[335307363,1724097038710,-32394.3397313,0.00013487,2]
[335307364,1724097038720,-569.55611374,0.00013496,2]
[335307365,1724097038731,-521.29251267,0.00013496,2]
[335307366,1724097038742,-1562.72058678,0.00013497,2]
[335307367,1724097038753,-154.69833824,0.00013497,2]
[335307368,1724097038764,-544.00882293,0.00013497,2]
[335307369,1724097038774,-780.05358786,0.00013497,2]
[335307370,1724097038785,-810.66153205,0.00013497,2]
[335307371,1724097038795,-422.31766157,0.00013497,2]
[335307372,1724097038805,-183.26729203,0.00013497,2]
[335307373,1724097038816,-166.37875607,0.00013497,2]
[335307374,1724097038826,-231.99090105,0.00013596,2]
[335307375,1724097038836,-2711.31124135,0.00013596,2]
[335307376,1724097038846,-154.90945433,0.00013596,2]
[335307377,1724097038855,-342.65845262,0.00013596,2]
[335307378,1724097038865,-493.30764145,0.00013596,2]
[335307379,1724097038874,-1613.45959463,0.00013596,2]
[335307380,1724097038884,-301.53815771,0.00013596,2]
[335307381,1724097038895,-601.21509456,0.00013596,2]
[335307382,1724097038904,-898.70545475,0.00013596,2]
[335307383,1724097038914,-202.87058516,0.00013596,2]
[335307384,1724097038924,-240.13899859,0.00013596,2]
[335307385,1724097038934,-182.35195424,0.00013596,2]
[335307386,1724097038944,-210.4,0.00013596,2]
[335307387,1724097038954,-665.24157892,0.00013596,2]
[335307388,1724097038963,-182.23705968,0.00013597,2]
[335307389,1724097038973,-154.69833824,0.00013597,2]
[335307390,1724097038984,-228.29494814,0.00013597,2]
[335307391,1724097038994,-154.69833824,0.00013597,2]
[335307392,1724097039005,-190.07446844,0.00013597,2]
[335307393,1724097039016,-728.79489661,0.00013597,2]
[335307394,1724097039025,-154.69833824,0.00013597,2]
[335307395,1724097039035,-520.61647298,0.00013597,2]
[335307396,1724097039044,-303.88315392,0.00013597,2]
[335307397,1724097039054,-688.33798731,0.00013597,2]
[335307398,1724097039063,-294.39153461,0.00013597,2]
[335307399,1724097039073,-154.98301103,0.00013597,2]
[335307400,1724097039084,-413.66267349,0.00013599,2]
[335307401,1724097039094,-32394.3397313,0.00013687,2]
[335307402,1724097039103,-165.38951444,0.00013688,2]
[335307403,1724097039113,-862.44048895,0.00013688,2]
[335307404,1724097039123,-154.69833824,0.00013688,2]
[335307405,1724097039132,-196.81150092,0.00013688,2]
[335307406,1724097039142,-155.02257165,0.00013688,2]
[335307407,1724097039152,-186.54146635,0.00013688,2]
[335307408,1724097039161,-523.45214377,0.00013688,3]
[335307409,1724097039170,-154.74465897,0.00013697,2]
[335307410,1724097039180,-155.20369099,0.00013697,2]
[335307411,1724097039190,-2166.25640825,0.00013697,2]
[335307412,1724097039199,-251.30174091,0.00013698,2]
[335307413,1724097039209,-500.0,0.00013698,2]
[335307414,1724097039218,-500.0,0.00013698,2]
[335307415,1724097039227,-500.0,0.00013698,2]
[335307416,1724097039237,-500.0,0.00013698,2]
[335307417,1724097039246,-408.42781686,0.00013698,2]
[335307418,1724097039255,-647.17373529,0.00013698,2]
[335307419,1724097039265,-1500.0,0.00013698,2]
[335307420,1724097039275,-809.95963071,0.00013698,2]
[335307421,1724097039284,-194.82337617,0.00013699,2]
[335307422,1724097039294,-500.0,0.00013699,2]
[335307423,1724097039304,-378.63010633,0.00013699,2]
[335307424,1724097039313,-200.0,0.000137,2]
[335307425,1724097039324,-495.14476956,0.00014245,2]
[335307426,1724097039333,-622.034811,0.00014247,2]
[335307427,1724097039343,-587.0,0.00014506,2]
[335307428,1724097039353,-442.42488791,0.00014519,2]
[335307429,1724097039362,-400.0,0.00014787,2]
[335307430,1724097039372,-400.0,0.0001507,2]
[335307431,1724097039380,-322.198842,0.0001589,2]
[335307432,1724097039390,-823.0,0.00015956,2]
[335307433,1724097039400,-97183.0191939,0.0001599,2]
[335307434,1724097039409,-100000.0,0.00016,2]
[335307435,1724097039418,-621.461703,0.00016,2]
[335307436,1724097039427,-621.461703,0.00016,2]
[335307437,1724097039436,-236.177536,0.00016,2]
[335307438,1724097039446,-236.177536,0.00016,2]
[335307439,1724097039455,-151.0,0.00016,2]
[335307440,1724097039466,-151.0,0.00016,2]
[335307441,1724097039478,-151.0,0.00016,2]
[335307442,1724097039487,-255.222234,0.00016,2]
[335307443,1724097039496,-255.222234,0.00016,2]
[335307444,1724097039505,-534.001429,0.00016,2]
[335307445,1724097039515,-534.001429,0.00016,2]
[335307446,1724097039524,-574.18002641,0.00016115,2]
[335307447,1724097039533,-953.38755458,0.00016146,2]
[335307448,1724097039543,-336.82525701,0.00016146,2]
[335307449,1724097039553,-153.0,0.00016151,2]
[335307450,1724097039562,-153.0,0.00016151,2]
[335307451,1724097039571,-153.0,0.00016151,2]
[335307452,1724097039580,-153.0,0.00016151,2]
[335307453,1724097039590,-153.0,0.00016151,2]
[335307454,1724097039599,-153.0,0.00016151,2]
[335307455,1724097039608,-153.0,0.00016151,2]
[335307456,1724097039618,-153.0,0.00016151,2]
[335307457,1724097039627,-153.0,0.00016151,2]
[335307458,1724097039636,-153.0,0.00016151,2]
[335307459,1724097039646,-153.0,0.00016151,2]
[335307460,1724097039656,-153.0,0.00016151,2]
[335307461,1724097039666,-153.0,0.00016158,2]
[335307462,1724097039677,-153.0,0.00016158,2]
[335307463,1724097039688,-153.0,0.00016158,2]
[335307464,1724097039697,-153.0,0.00016158,2]
[335307465,1724097039706,-153.0,0.00016158,2]
[335307466,1724097039716,-153.0,0.00016159,2]
[335307467,1724097039727,-1671.03883404,0.00016338,2]
[335307468,1724097039738,-1110.9613583,0.00016341,2]
[335307469,1724097039750,-5244.78933856,0.00016389,2]
[335307470,1724097039762,-5244.78933856,0.00016389,2]
[335307471,1724097039772,-5328.69624806,0.0001639,2]
[335307472,1724097039782,-150.112236,0.000164,2]
[335307473,1724097039791,-373.557436,0.00016428,2]
[335307474,1724097039800,-151.0,0.00016428,2]
[335307475,1724097039810,-151.0,0.00016428,2]
[335307476,1724097039820,-329.023537,0.00016428,2]
[335307477,1724097039832,-329.023537,0.00016428,2]
[335307478,1724097039843,-162.029148,0.00016428,2]
[335307479,1724097039853,-151.0,0.00016428,2]
[335307480,1724097039863,-400.902051,0.00016428,2]
[335307481,1724097039874,-213.346776,0.00016428,2]
[335307482,1724097039884,-400.902051,0.00016428,2]
[335307483,1724097039897,-777.111463,0.00016428,2]
[335307484,1724097039907,-777.111463,0.00016428,2]
[335307485,1724097039918,-151.0,0.00016428,2]
[335307486,1724097039928,-151.0,0.00016428,2]
[335307487,1724097039940,-151.0,0.00016428,2]
[335307488,1724097039951,-151.0,0.00016428,2]
[335307489,1724097039962,-287.078398,0.00016428,2]
[335307490,1724097039971,-287.078398,0.00016428,2]
[335307491,1724097039982,-412.401712,0.00016428,2]
[335307492,1724097039993,-412.401712,0.00016428,2]
[335307493,1724097040005,-151.0,0.00016428,2]
[335307494,1724097040016,-151.0,0.00016428,2]
[335307495,1724097040027,-260.82989,0.00016428,2]
[335307496,1724097040037,-260.82989,0.00016428,2]
[335307497,1724097040047,-621.461703,0.00016428,2]
[335307498,1724097040058,-358.731823,0.00016428,2]
[335307499,1724097040067,-621.461703,0.00016428,2]
[335307500,1724097040078,-358.731823,0.00016428,2]
[335307501,1724097040088,-236.177536,0.00016428,2]
[335307502,1724097040099,-236.177536,0.00016428,2]
[335307503,1724097040111,-151.0,0.00016428,2]
[335307504,1724097040123,-151.0,0.00016428,2]
[335307505,1724097040132,-255.222234,0.00016428,2]
[335307507,1724097040142,-255.222234,0.00016428,2]
[335307509,1724097040152,-534.001429,0.00016428,2]
[335307511,1724097040163,-534.001429,0.00016428,2]
[335307512,1724097040173,-97183.0191939,0.00016428,2]
[335307513,1724097040183,-203.66534114,0.00016437,2]
[335307514,1724097040192,-5993.21173941,0.00016437,2]
[335307515,1724097040201,-154.69833824,0.00016438,2]
[335307516,1724097040211,-500.0,0.00016438,2]
[335307518,1724097040220,-500.0,0.00016438,2]
[335307520,1724097040231,-500.0,0.00016438,2]
[335307523,1724097040241,-500.0,0.00016438,2]
[335307526,1724097040250,-500.0,0.00016438,2]
[335307528,1724097040260,-500.0,0.00016438,2]
[335307530,1724097040270,-618.38065273,0.00016438,2]
[335307532,1724097040280,-500.0,0.00016438,2]
[335307534,1724097040292,-500.0,0.00016438,2]
[335307535,1724097040302,-516.32103639,0.00016438,2]
[335307537,1724097040311,-500.0,0.00016438,2]
[335307539,1724097040322,-500.0,0.00016438,2]
[335307540,1724097040333,-500.0,0.00016438,2]
[335307545,1724097040510,-500.0,0.00016438,2]
[335307546,1724097040522,-500.0,0.00016438,2]
[335307547,1724097040533,-500.0,0.00016438,2]
[335307548,1724097040546,-500.0,0.00016438,2]
[335307549,1724097040559,-500.0,0.00016438,2]
[335307550,1724097040571,-500.0,0.00016438,2]
[335307551,1724097040582,-500.0,0.00016438,2]
[335307552,1724097040592,-500.0,0.00016438,2]
[335307553,1724097040603,-500.0,0.00016438,2]
[335307554,1724097040615,-638.94696661,0.00016438,2]
[335307556,1724097040627,-500.0,0.00016438,2]
[335307558,1724097040637,-500.0,0.00016438,2]
[335307560,1724097040648,-500.0,0.00016438,2]
[335307563,1724097040658,-500.0,0.00016438,2]
[335307565,1724097040668,-500.0,0.00016438,2]
[335307567,1724097040678,-500.0,0.00016438,2]
[335307569,1724097040688,-508.12295322,0.00016438,2]
[335307571,1724097040698,-500.0,0.00016438,2]
[335307572,1724097040709,-204.81684146,0.00016438,2]
[335307573,1724097040718,-500.0,0.00016438,2]
[335307574,1724097040730,-500.0,0.00016438,2]
[335307575,1724097040742,-500.0,0.00016438,2]
[335307576,1724097040752,-500.0,0.00016438,2]
[335307577,1724097040763,-500.0,0.00016438,2]
[335307578,1724097040775,-500.0,0.00016438,2]
[335307579,1724097040785,-500.0,0.00016438,2]
[335307580,1724097040795,-500.0,0.00016438,2]
[335307581,1724097040805,-500.0,0.00016438,2]
[335307582,1724097040816,-500.0,0.00016438,2]
[335307583,1724097040826,-500.0,0.00016438,2]
[335307584,1724097040837,-500.0,0.00016438,2]
[335307585,1724097040847,-500.0,0.00016438,2]
[335307586,1724097040857,-502.54813661,0.00016438,2]
[335307587,1724097040868,-500.0,0.00016438,2]
[335307589,1724097040878,-500.0,0.00016438,2]
[335307591,1724097040888,-500.0,0.00016438,2]
[335307593,1724097040903,-637.9,0.00016438,2]
[335307594,1724097040913,-500.0,0.00016438,2]
[335307595,1724097040924,-500.0,0.00016438,2]
[335307596,1724097040934,-511.68736097,0.00016438,2]
[335307597,1724097040945,-500.0,0.00016438,2]
[335307598,1724097040955,-500.0,0.00016438,2]
[335307599,1724097040964,-500.0,0.00016438,2]
[335307600,1724097040974,-500.0,0.00016438,2]
[335307601,1724097040985,-500.0,0.00016438,2]
[335307602,1724097040995,-500.0,0.00016438,2]
[335307603,1724097041006,-500.0,0.00016438,2]
[335307604,1724097041017,-574.86,0.00016438,2]
[335307605,1724097041029,-500.0,0.00016438,2]
[335307606,1724097041040,-500.0,0.00016438,2]
[335307607,1724097041051,-500.0,0.00016438,2]
[335307608,1724097041062,-500.0,0.00016438,2]
[335307609,1724097041074,-500.0,0.00016438,2]
[335307610,1724097041084,-500.0,0.00016438,2]
[335307611,1724097041095,-500.0,0.00016438,2]
[335307612,1724097041106,-500.0,0.00016438,2]
[335307613,1724097041118,-500.0,0.00016438,2]
[335307614,1724097041129,-500.0,0.00016438,2]
[335307615,1724097041140,-500.0,0.00016438,2]
[335307616,1724097041153,-500.0,0.00016438,2]
[335307617,1724097041165,-506.93036892,0.00016438,2]
[335307618,1724097041176,-500.0,0.00016438,2]
[335307619,1724097041186,-596.46,0.00016438,2]
[335307620,1724097041197,-500.0,0.00016438,2]
[335307621,1724097041208,-500.0,0.00016438,2]
[335307622,1724097041218,-500.0,0.00016438,2]
[335307623,1724097041228,-500.0,0.00016438,2]
[335307624,1724097041238,-500.0,0.00016438,2]
[335307625,1724097041249,-500.0,0.00016438,2]
[335307626,1724097041259,-500.0,0.00016438,2]
[335307627,1724097041269,-500.0,0.00016438,2]
[335307628,1724097041279,-500.0,0.00016438,2]
[335307629,1724097041289,-500.0,0.00016438,2]
[335307630,1724097041299,-500.0,0.00016438,2]
[335307631,1724097041311,-500.0,0.00016438,2]
[335307632,1724097041322,-500.0,0.00016438,2]
[335307633,1724097041332,-500.0,0.00016438,2]
[335307634,1724097041342,-500.0,0.00016438,2]
[335307635,1724097041351,-500.0,0.00016438,2]
[335307636,1724097041360,-341.48,0.00016438,2]
[335307637,1724097041370,-1148.14,0.00016438,2]
[335307638,1724097041379,-500.0,0.00016438,2]
[335307639,1724097041389,-500.0,0.00016438,2]
[335307640,1724097041399,-200.13814854,0.00016438,2]
[335307641,1724097041409,-500.0,0.00016438,2]
[335307642,1724097041419,-500.0,0.00016438,2]
[335307643,1724097041428,-500.0,0.00016438,2]
[335307644,1724097041437,-500.0,0.00016438,2]
[335307645,1724097041446,-500.0,0.00016438,2]
[335307646,1724097041455,-500.0,0.00016438,2]
[335307647,1724097041465,-500.0,0.00016438,2]
[335307648,1724097041477,-500.0,0.00016438,2]
[335307649,1724097041486,-500.0,0.00016438,2]
[335307650,1724097041495,-500.0,0.00016438,2]
[335307651,1724097041504,-514.38428904,0.00016438,2]
[335307652,1724097041514,-583.52,0.00016438,2]
[335307653,1724097041523,-500.0,0.00016438,2]
[335307654,1724097041533,-500.0,0.00016438,2]
[335307655,1724097041542,-500.0,0.00016438,2]
[335307656,1724097041552,-926.77,0.00016438,2]
[335307657,1724097041561,-503.81343716,0.00016438,2]
[335307658,1724097041570,-500.0,0.00016438,2]
[335307659,1724097041580,-500.0,0.00016438,2]
[335307660,1724097041589,-500.0,0.00016438,2]
[335307661,1724097041599,-506.66604033,0.00016438,2]
[335307662,1724097041608,-500.0,0.00016438,2]
[335307663,1724097041617,-218.59024795,0.00016438,2]
[335307664,1724097041627,-500.0,0.00016438,2]
[335307665,1724097041636,-500.0,0.00016438,2]
[335307666,1724097041647,-500.0,0.00016438,2]
[335307667,1724097041655,-500.0,0.00016438,2]
[335307668,1724097041665,-500.0,0.00016438,2]
[335307669,1724097041675,-500.0,0.00016438,2]
[335307670,1724097041684,-500.0,0.00016438,2]
[335307671,1724097041693,-500.0,0.00016438,2]
[335307672,1724097041702,-500.0,0.00016438,2]
[335307673,1724097041711,-500.0,0.00016438,2]
[335307674,1724097041721,-510.98672459,0.00016438,2]
[335307675,1724097041730,-500.0,0.00016438,2]
[335307676,1724097041739,-504.18482772,0.00016438,2]
[335307677,1724097041748,-500.0,0.00016438,2]
[335307678,1724097041757,-412.2194398,0.00016438,2]
[335307679,1724097041767,-500.0,0.00016438,2]
[335307680,1724097041777,-500.0,0.00016438,2]
[335307681,1724097041786,-500.0,0.00016438,2]
[335307682,1724097041795,-500.0,0.00016438,2]
[335307683,1724097041804,-500.0,0.00016438,2]
[335307684,1724097041815,-529.72,0.00016438,2]
[335307685,1724097041826,-500.0,0.00016438,2]
[335307686,1724097041835,-500.0,0.00016438,2]
[335307687,1724097041845,-500.0,0.00016438,2]
[335307688,1724097041857,-500.0,0.00016438,2]
[335307689,1724097041866,-500.0,0.00016438,2]
[335307690,1724097041877,-500.0,0.00016438,2]
[335307691,1724097041887,-411.61122609,0.00016438,2]
[335307692,1724097041899,-500.0,0.00016438,2]
[335307693,1724097041910,-214.75801558,0.00016438,2]
[335307694,1724097041923,-500.0,0.00016438,2]
[335307695,1724097041933,-500.0,0.00016438,2]
[335307696,1724097041944,-500.0,0.00016438,2]
[335307697,1724097041953,-500.0,0.00016438,2]
[335307698,1724097041963,-1470.83,0.00016438,2]
[335307699,1724097041972,-500.0,0.00016438,2]
[335307700,1724097041982,-500.0,0.00016438,2]
[335307701,1724097041992,-519.29215306,0.00016438,2]
[335307702,1724097042003,-500.0,0.00016438,2]
[335307703,1724097042014,-500.0,0.00016438,2]
[335307704,1724097042023,-500.0,0.00016438,2]
[335307705,1724097042032,-628.19,0.00016438,2]
[335307706,1724097042042,-509.04117585,0.00016438,2]
[335307707,1724097042051,-500.0,0.00016438,2]
[335307708,1724097042060,-500.0,0.00016438,2]
[335307709,1724097042069,-431.66523397,0.00016438,2]
[335307710,1724097042078,-500.0,0.00016438,2]
[335307711,1724097042087,-500.0,0.00016438,2]
[335307712,1724097042097,-511.12529122,0.00016438,2]
[335307713,1724097042107,-500.0,0.00016438,2]
[335307714,1724097042116,-500.0,0.00016438,2]
[335307715,1724097042125,-500.0,0.00016438,2]
[335307716,1724097042134,-500.0,0.00016438,2]
[335307717,1724097042144,-259.98056869,0.00016438,2]
[335307718,1724097042153,-500.0,0.00016438,2]
[335307719,1724097042162,-500.0,0.00016438,2]
[335307720,1724097042172,-505.55650891,0.00016438,2]
[335307721,1724097042181,-500.0,0.00016438,2]
[335307722,1724097042191,-500.0,0.00016438,2]
[335307723,1724097042200,-218.62299037,0.00016438,2]
[335307724,1724097042210,-500.0,0.00016438,2]
[335307725,1724097042220,-500.0,0.00016438,2]
[335307726,1724097042232,-500.0,0.00016438,2]
[335307727,1724097042243,-170.55211134,0.00016438,2]
[335307728,1724097042253,-500.0,0.00016438,2]
[335307729,1724097042263,-504.88832304,0.00016438,2]
[335307730,1724097042276,-500.0,0.00016438,2]
[335307731,1724097042288,-500.0,0.00016438,2]
[335307732,1724097042298,-500.0,0.00016438,2]
[335307733,1724097042308,-500.0,0.00016438,2]
[335307734,1724097042320,-500.0,0.00016438,2]
[335307735,1724097042333,-500.0,0.00016438,2]
[335307736,1724097042345,-500.0,0.00016438,2]
[335307737,1724097042356,-500.0,0.00016438,2]
[335307738,1724097042366,-500.0,0.00016438,2]
[335307739,1724097042378,-500.0,0.00016438,2]
[335307740,1724097042389,-500.0,0.00016438,2]
[335307741,1724097042402,-500.0,0.00016438,2]
[335307742,1724097042413,-500.0,0.00016438,2]
[335307743,1724097042422,-500.0,0.00016438,2]
[335307744,1724097042432,-500.0,0.00016438,2]
[335307745,1724097042442,-500.0,0.00016438,2]
[335307746,1724097042452,-500.0,0.00016438,2]
[335307747,1724097042463,-500.0,0.00016438,2]
[335307748,1724097042478,-500.0,0.00016438,2]
[335307749,1724097042488,-500.0,0.00016438,2]
[335307750,1724097042500,-500.0,0.00016438,2]
[335307751,1724097042510,-500.0,0.00016438,2]
[335307752,1724097042522,-500.0,0.00016438,2]
[335307753,1724097042532,-500.0,0.00016438,2]
[335307754,1724097042541,-643.65602979,0.00016438,2]
[335307755,1724097042553,-500.0,0.00016438,2]
[335307756,1724097042562,-500.0,0.00016438,2]
[335307757,1724097042572,-500.0,0.00016438,2]
[335307758,1724097042581,-500.0,0.00016438,2]
[335307759,1724097042591,-500.0,0.00016438,2]
[335307760,1724097042600,-500.0,0.00016438,2]
[335307761,1724097042609,-500.0,0.00016438,2]
[335307762,1724097042618,-500.0,0.00016438,2]
[335307763,1724097042627,-500.0,0.00016438,2]
[335307764,1724097042636,-500.0,0.00016438,2]
[335307765,1724097042646,-500.0,0.00016438,2]
[335307766,1724097042655,-528.83306121,0.00016438,2]
[335307767,1724097042665,-155.9040371,0.00016438,2]
[335307768,1724097042676,-500.0,0.00016438,2]
[335307769,1724097042687,-396.09400744,0.00016438,2]
[335307770,1724097042698,-500.0,0.00016438,2]
[335307771,1724097042708,-535.97,0.00016438,2]
[335307772,1724097042718,-500.0,0.00016438,2]
[335307773,1724097042730,-504.13587495,0.00016438,2]
[335307774,1724097042741,-500.0,0.00016438,2]
[335307775,1724097042751,-500.0,0.00016438,2]
[335307776,1724097042761,-507.62221857,0.00016438,2]
[335307777,1724097042771,-500.0,0.00016438,2]
[335307778,1724097042781,-320.990306,0.00016438,2]
[335307779,1724097042792,-320.990306,0.00016438,2]
[335307780,1724097042801,-500.0,0.00016438,2]
[335307781,1724097042811,-320.990306,0.00016438,2]
[335307782,1724097042820,-500.0,0.00016438,2]
[335307783,1724097042829,-561.1,0.00016438,2]
[335307784,1724097042839,-320.990306,0.00016438,2]
[335307785,1724097042850,-500.0,0.00016438,2]
[335307786,1724097042863,-500.0,0.00016438,2]
[335307787,1724097042873,-500.0,0.00016438,2]
[335307788,1724097042884,-500.0,0.00016438,2]
[335307789,1724097042895,-500.0,0.00016438,2]
[335307790,1724097042906,-500.0,0.00016438,2]
[335307791,1724097042916,-500.0,0.00016438,2]
[335307792,1724097042926,-500.0,0.00016438,2]
[335307793,1724097042937,-558.56673661,0.00016438,2]
[335307794,1724097042947,-500.0,0.00016438,2]
[335307795,1724097042959,-153.528801,0.00016438,2]
[335307796,1724097042968,-500.0,0.00016438,2]
[335307797,1724097042978,-500.0,0.00016438,2]
[335307798,1724097042988,-500.0,0.00016438,2]
[335307799,1724097043000,-602.15090383,0.00016438,2]
[335307800,1724097043010,-151.0,0.00016438,2]
[335307801,1724097043022,-151.0,0.00016438,2]
[335307802,1724097043032,-500.0,0.00016438,2]
[335307803,1724097043043,-500.0,0.00016438,2]
[335307804,1724097043053,-500.0,0.00016438,2]
[335307805,1724097043063,-151.0,0.00016438,2]
[335307806,1724097043073,-500.0,0.00016438,2]
[335307807,1724097043083,-500.0,0.00016438,2]
[335307808,1724097043092,-500.0,0.00016438,2]
[335307809,1724097043101,-500.0,0.00016438,2]
[335307810,1724097043111,-151.0,0.00016438,2]
[335307811,1724097043121,-151.0,0.00016438,2]
[335307812,1724097043130,-500.0,0.00016438,2]
[335307813,1724097043139,-487.14935266,0.00016438,2]
[335307814,1724097043152,-500.0,0.00016438,2]
[335307815,1724097043162,-500.0,0.00016438,2]
[335307817,1724097043172,-500.0,0.00016438,2]
[335307819,1724097043182,-291.96317633,0.00016438,2]
[335307821,1724097043191,-530.30900808,0.00016438,2]
[335307823,1724097043200,-500.0,0.00016438,2]
[335307824,1724097043210,-500.0,0.00016438,2]
[335307825,1724097043220,-500.0,0.00016438,2]
[335307826,1724097043229,-500.0,0.00016438,2]
[335307827,1724097043238,-500.0,0.00016438,2]
[335307828,1724097043248,-500.0,0.00016438,2]
[335307829,1724097043258,-500.0,0.00016438,2]
[335307830,1724097043267,-500.0,0.00016438,2]
[335307831,1724097043276,-500.0,0.00016438,2]
[335307832,1724097043287,-500.0,0.00016438,2]
[335307833,1724097043296,-500.0,0.00016438,2]
[335307834,1724097043306,-500.0,0.00016438,2]
[335307835,1724097043316,-515.80923211,0.00016438,2]
[335307836,1724097043328,-500.0,0.00016438,2]
[335307837,1724097043338,-500.0,0.00016438,2]
[335307838,1724097043348,-500.0,0.00016438,2]
[335307839,1724097043359,-373.557436,0.00016438,2]
[335307840,1724097043368,-500.0,0.00016438,2]
[335307841,1724097043377,-373.557436,0.00016438,2]
[335307842,1724097043387,-500.0,0.00016438,2]
[335307843,1724097043401,-500.0,0.00016438,2]
[335307844,1724097043411,-500.0,0.00016438,2]
[335307845,1724097043421,-503.86843443,0.00016438,2]
[335307846,1724097043431,-500.0,0.00016438,2]
[335307847,1724097043440,-177.78474207,0.00016438,2]
[335307848,1724097043452,-500.0,0.00016438,2]
[335307849,1724097043464,-500.0,0.00016438,2]
[335307850,1724097043479,-500.0,0.00016438,2]
[335307851,1724097043491,-500.0,0.00016438,2]
[335307852,1724097043501,-500.0,0.00016438,2]
[335307853,1724097043513,-500.0,0.00016438,2]
[335307854,1724097043523,-500.0,0.00016438,2]
[335307855,1724097043534,-500.0,0.00016438,2]
[335307856,1724097043544,-500.0,0.00016438,2]
[335307857,1724097043556,-1199.55,0.00016438,2]
[335307858,1724097043566,-500.0,0.00016438,2]
[335307859,1724097043575,-500.0,0.00016438,2]
[335307860,1724097043587,-500.0,0.00016438,2]
[335307861,1724097043597,-500.0,0.00016438,2]
[335307862,1724097043607,-500.0,0.00016438,2]
[335307863,1724097043616,-500.0,0.00016438,2]
[335307864,1724097043626,-500.0,0.00016438,2]
[335307865,1724097043637,-512.25954095,0.00016438,2]
[335307866,1724097043649,-509.558402,0.00016438,2]
[335307867,1724097043660,-500.0,0.00016438,2]
[335307868,1724097043671,-500.0,0.00016438,2]
[335307869,1724097043683,-500.0,0.00016438,2]
[335307870,1724097043694,-500.0,0.00016438,2]
[335307871,1724097043705,-500.0,0.00016438,2]
[335307872,1724097043715,-500.0,0.00016438,2]
[335307873,1724097043726,-500.0,0.00016438,2]
[335307874,1724097043735,-500.0,0.00016438,2]
[335307875,1724097043746,-500.0,0.00016438,2]
[335307876,1724097043756,-500.0,0.00016438,2]
[335307877,1724097043766,-151.0,0.00016438,2]
[335307878,1724097043776,-500.0,0.00016438,2]
[335307879,1724097043785,-715.21,0.00016438,2]
[335307880,1724097043796,-1170.17,0.00016438,2]
[335307881,1724097043806,-500.0,0.00016438,2]
[335307882,1724097043816,-151.0,0.00016438,2]
[335307883,1724097043826,-151.0,0.00016438,2]
[335307884,1724097043836,-500.0,0.00016438,2]
[335307885,1724097043847,-329.023537,0.00016438,2]
[335307887,1724097043857,-329.023537,0.00016438,2]
[335307889,1724097043867,-500.0,0.00016438,2]